bitfinex-derivatives/quotes_ETHF0:USTF0_20250702
["timestamp","ask_amount","ask_price","bid_price","bid_amount"]
[1751462640225,37.23766,2445.4,2445.3,4.87993664]
[1751462640524,36.42,2445.4,2445.3,4.87993664]
[1751462642730,37.23766,2445.4,2445.3,4.87993664]
[1751462642931,37.23766,2445.4,2445.3,4.06224664]
[1751462643125,37.23766,2445.4,2445.2,4.06224664]
[1751462643126,0.81769,2445.3,2445.2,4.06224664]
[1751462643326,5.54590644,2445.3,2445.2,4.06224664]
[1751462643633,0.81772,2445.2,2445.1,4.06224664]
[1751462643931,27.72982,2445.2,2445.1,4.06224664]
[1751462644230,0.81776,2445.1,2445.0,4.06224664]
[1751462644428,0.81779,2445.0,2444.9,4.88004664]
[1751462644628,24.861,2445.0,2444.9,4.88004664]
[1751462644825,25.67879,2445.0,2444.9,4.06224664]
[1751462645028,0.81782,2444.9,2444.8,4.06224664]
[1751462645228,17.10303644,2444.9,2444.8,4.06224664]
[1751462645426,0.81786,2444.8,2444.7,4.06224664]
[1751462645623,26.34886,2444.8,2444.7,4.06224664]
[1751462646331,0.8179,2444.7,2444.6,0.81793]
[1751462646528,0.81793,2444.6,2444.5,4.06224664]
[1751462646828,25.67793,2444.6,2444.5,4.06224664]
[1751462647031,25.67793,2444.6,2444.5,4.88020664]
[1751462648030,25.67793,2444.6,2444.5,4.06224664]
[1751462648332,25.67793,2444.6,2444.4,1.51067]
[1751462648533,0.81801,2444.4,2444.2,4.88028664]
[1751462648734,24.861,2444.3,2444.2,5.56758664]
[1751462649229,29.04924644,2444.3,2444.2,4.74954664]
[1751462649533,28.23121644,2444.3,2444.2,0.81806]
[1751462650132,29.04924644,2444.3,2444.1,4.88031664]
[1751462650335,0.81806,2444.2,2444.0,6.26666664]
[1751462650534,24.862,2444.1,2444.0,1.50543]
[1751462652441,24.862,2444.1,2443.9,0.81814]
[1751462652442,29.05030644,2444.1,2443.9,0.81814]
[1751462653036,28.23221644,2444.1,2444.0,0.81813]
[1751462654037,0.00613547,2444.2,2444.1,0.81809]
[1751462654339,36.43013547,2444.2,2444.1,0.81809]
[1751462655239,0.00613547,2444.2,2444.1,0.81809]
[1751462655439,36.43113547,2444.2,2444.1,0.81809]
[1751462655740,0.00613547,2444.2,2444.1,0.81809]
[1751462655936,36.43313547,2444.2,2444.1,0.81809]
[1751462656438,36.43313547,2444.2,2444.1,2.99659]
[1751462658136,36.43213547,2444.2,2444.1,2.99659]
[1751462664644,36.43213547,2444.2,2444.1,3.67419]
[1751462666948,0.00613547,2444.2,2444.1,3.67419]
[1751462667241,3.602,2444.6,2444.5,0.81796]
[1751462667548,40.021,2444.6,2444.5,0.81796]
[1751462667846,40.83893,2444.6,2444.5,0.81796]
[1751462668443,4.41993,2444.6,2444.5,0.81796]
[1751462668644,41.16705403,2444.6,2444.5,0.81796]
[1751462669543,4.74805403,2444.6,2444.5,0.81796]
[1751462669943,41.16705403,2444.6,2444.5,0.81796]
[1751462670645,0.81805,2444.3,2444.0,2.04525]
[1751462670844,29.05030644,2444.2,2444.1,0.81809]
[1751462671351,0.8181,2444.1,2444.0,0.8181]
[1751462671552,12.3741,2444.1,2444.0,0.8181]
[1751462672350,12.37409,2444.1,2444.0,0.8181]
[1751462672748,11.556,2444.1,2444.0,0.8181]
[1751462673951,0.717,2444.4,2444.3,0.81803]
[1751462674152,36.418,2444.4,2444.3,0.81803]
[1751462674753,4.40824047,2444.6,2444.5,0.81796]
[1751462674955,40.82624047,2444.6,2444.5,0.81796]
[1751462675556,0.81798,2444.5,2444.4,0.81797]
[1751462675955,25.67898,2444.5,2444.4,0.81797]
[1751462676158,24.861,2444.5,2444.2,0.6959]
[1751462676353,0.81803,2444.3,2444.2,0.81805]
[1751462676553,24.861,2444.3,2444.2,0.81805]
[1751462676948,25.67903,2444.3,2444.2,0.81805]
[1751462677155,24.861,2444.3,2444.2,0.81805]
[1751462677954,25.67903,2444.3,2444.2,0.81805]
[1751462678659,26.40453,2444.3,2444.2,0.81805]
[1751462680163,0.81806,2444.2,2444.1,0.81809]
[1751462680560,0.81811,2444.1,2444.0,0.8181]
[1751462680763,37.23311,2444.1,2444.0,0.8181]
[1751462682361,36.415,2444.1,2444.0,0.8181]
[1751462683363,37.2331,2444.1,2444.0,0.8181]
[1751462683564,37.2331,2444.1,2444.0,4.88890913]
[1751462684065,36.415,2444.1,2444.0,4.88890913]
[1751462684565,37.2331,2444.1,2444.0,4.88890913]
[1751462686366,37.2331,2444.1,2444.0,0.8181]
[1751462688168,36.415,2444.1,2444.0,0.8181]
[1751462688467,36.413,2444.1,2444.0,0.8181]
[1751462688667,36.413,2444.1,2444.0,5.64741644]
[1751462689167,36.413,2444.1,2444.0,5.64744644]
[1751462689668,4.42,2444.4,2444.3,0.81803]
[1751462689868,40.833,2444.4,2444.3,0.81803]
[1751462692067,37.231,2444.4,2444.3,0.81803]
[1751462692371,36.413,2444.4,2444.3,0.81803]
[1751462692974,37.231,2444.4,2444.3,0.81803]
[1751462693471,36.413,2444.4,2444.3,0.81803]
[1751462694373,36.411,2444.4,2444.3,0.81803]
[1751462694575,36.411,2444.4,2444.3,2.93623]
[1751462695677,1.14608403,2444.6,2444.3,2.93623]
[1751462695974,37.222,2444.5,2444.4,0.81797]
[1751462696878,0.818,2444.4,2444.3,1.52911]
[1751462697074,37.222,2444.4,2444.3,1.52911]
[1751462697875,36.404,2444.4,2444.3,1.52911]
[1751462698476,37.222,2444.4,2444.3,1.52911]
[1751462699079,37.222,2444.4,2444.3,0.81801]
[1751462699480,37.22,2444.4,2444.3,0.81801]
[1751462700277,0.81806,2444.2,2444.1,4.07080913]
[1751462700477,0.8181,2444.1,2444.0,4.07080913]
[1751462700676,0.8181,2444.1,2444.0,0.81813]
[1751462700877,0.81813,2444.0,2443.9,4.8950846]
[1751462701179,25.66813,2444.0,2443.9,4.8950846]
[1751462703276,25.66813,2444.0,2443.9,0.82427547]
[1751462703682,25.66813,2444.0,2443.9,4.8950846]
[1751462704074,25.66813,2444.0,2443.9,4.0769446]
[1751462705082,25.66813,2444.0,2443.9,0.00613547]
[1751462708685,29.03834644,2444.0,2443.9,0.00613547]
[1751462711391,29.03834644,2444.0,2443.9,0.82429547]
[1751462711588,29.03834644,2444.0,2443.9,0.00613547]
[1751462711784,12.36913,2444.0,2443.9,0.82429547]
[1751462711985,11.551,2444.1,2444.0,0.81813]
[1751462712292,3.602,2444.2,2444.1,0.8181]
[1751462712488,28.449,2444.2,2444.1,1.5167]
[1751462712688,28.449,2444.2,2444.1,7.9063]
[1751462712889,24.847,2444.2,2444.1,7.9063]
[1751462713395,24.847,2444.2,2444.1,2.9063]
[1751462714490,12.37001,2444.4,2444.3,0.81803]
[1751462714690,37.21601,2444.4,2444.3,0.81803]
[1751462717693,36.396,2444.4,2444.3,0.81803]
[1751462718699,36.396,2444.4,2444.3,2.25263]
[1751462718999,62.90141644,2444.8,2444.4,2.04496]
[1751462719199,36.394,2444.7,2444.6,4.18814644]
[1751462719399,37.2119,2444.7,2444.6,1.48633]
[1751462719601,12.3689,2444.7,2444.6,1.48633]
[1751462719801,37.2119,2444.7,2444.6,1.48633]
[1751462722402,36.394,2444.7,2444.6,1.48633]
[1751462722801,37.2119,2444.7,2444.6,1.48633]
[1751462727411,12.3689,2444.7,2444.6,1.48633]
[1751462727610,37.2069,2444.7,2444.6,1.48633]
[1751462732014,36.389,2444.7,2444.6,1.48633]
[1751462732412,37.2069,2444.7,2444.6,1.48633]
[1751462733617,36.389,2444.7,2444.6,1.48633]
[1751462733917,58.868,2444.8,2444.7,0.8179]
[1751462734118,95.244,2444.8,2444.7,0.8179]
[1751462735514,96.06186,2444.8,2444.7,2.2485]
[1751462735714,95.244,2444.8,2444.7,2.2485]
[1751462736315,70.411,2444.8,2444.7,2.2485]
[1751462736517,95.244,2444.8,2444.7,2.2485]
[1751462737217,95.243,2444.8,2444.7,2.2485]
[1751462738020,70.411,2444.8,2444.7,2.2485]
[1751462738220,95.242,2444.8,2444.7,2.2485]
[1751462739420,95.242,2444.8,2444.7,0.8179]
[1751462745123,58.868,2444.8,2444.7,0.8179]
[1751462745323,70.41,2444.8,2444.7,0.8179]
[1751462745524,95.237,2444.8,2444.7,5.54651644]
[1751462746025,95.237,2444.8,2444.7,46.34651644]
[1751462747124,70.41,2444.8,2444.7,46.34651644]
[1751462747319,95.236,2444.8,2444.7,50.41732557]
[1751462750827,11.542,2445.1,2444.8,2.04467]
[1751462751028,11.542,2445.1,2445.0,4.18801644]
[1751462751327,36.365,2445.1,2445.0,4.18801644]
[1751462751528,36.365,2445.1,2445.0,46.31041644]
[1751462753125,36.365,2445.1,2445.0,50.37088955]
[1751462753326,36.365,2445.1,2445.0,46.31041644]
[1751462754230,36.365,2445.1,2445.0,50.36325135]
[1751462757432,58.878,2445.5,2445.4,0.81766]
[1751462757734,0.6832,2445.8,2445.7,0.81756]
[1751462757938,37.0352,2445.8,2445.7,0.81756]
[1751462758132,12.2172,2445.8,2445.7,0.81756]
[1751462758336,37.0352,2445.8,2445.7,0.81756]
[1751462759729,12.2172,2445.8,2445.7,0.81756]
[1751462759934,11.534,2445.8,2445.7,0.81756]
[1751462760136,59.5741,2446.0,2445.9,0.8175]
[1751462760332,95.9251,2446.0,2445.9,0.8175]
[1751462760837,96.74256,2446.0,2445.9,0.8175]
[1751462763739,95.9191,2446.0,2445.9,0.8175]
[1751462763939,96.73656,2446.0,2445.9,0.8175]
[1751462765040,71.92456,2446.0,2445.9,0.8175]
[1751462765338,95.9191,2446.0,2445.9,0.8175]
[1751462765533,96.73656,2446.0,2445.9,0.8175]
[1751462766840,95.9191,2446.0,2445.9,0.8175]
[1751462767241,96.73656,2446.0,2445.9,0.8175]
[1751462768839,95.9191,2446.0,2445.9,0.8175]
[1751462769537,96.73656,2446.0,2445.9,0.8175]
[1751462769739,95.9191,2446.0,2445.9,0.8175]
[1751462770134,96.73656,2446.0,2445.9,0.8175]
[1751462773640,95.9191,2446.0,2445.9,0.8175]
[1751462774144,95.217,2446.0,2445.9,0.8175]
[1751462774542,58.872,2446.0,2445.9,0.8175]
[1751462774747,83.677,2446.0,2445.9,0.8175]
[1751462779750,83.674,2446.0,2445.9,0.8175]
[1751462779950,58.872,2446.0,2445.9,2.1633]
[1751462780151,83.673,2446.0,2445.9,2.1633]
[1751462780350,83.673,2446.0,2445.9,0.8175]
[1751462780645,84.49046,2446.0,2445.9,0.8175]
[1751462780851,83.673,2446.0,2445.9,0.8175]
[1751462783850,84.49046,2446.0,2445.9,0.8175]
[1751462785046,87.86067644,2446.0,2445.9,0.8175]
[1751462785646,0.8175,2445.9,2445.8,0.8175]
[1751462786149,1.4826,2445.9,2445.8,0.8175]
[1751462787949,1.4826,2445.9,2445.8,0.81753]
[1751462788256,0.81753,2445.8,2445.7,4.05283491]
[1751462788453,30.40244644,2445.8,2445.7,4.05283491]
[1751462788954,0.81756,2445.7,2445.6,4.87041491]
[1751462789350,0.8176,2445.6,2445.5,0.81761]
[1751462789554,41.18001644,2445.6,2445.5,0.81761]
[1751462789956,37.8098,2445.6,2445.5,0.81761]
[1751462790857,0.81756,2445.8,2445.7,0.81753]
[1751462791052,0.81752,2445.9,2445.8,0.8175]
[1751462791354,59.5533,2446.0,2445.9,0.8175]
[1751462791355,60.37078,2446.0,2445.9,0.8175]
[1751462791560,96.69178,2446.0,2445.9,0.8175]
[1751462792361,96.01048,2446.0,2445.9,0.8175]
[1751462793361,58.872,2446.0,2445.9,0.8175]
[1751462793553,70.397,2446.0,2445.9,0.8175]
[1751462793749,63.33413547,2446.0,2445.9,3.0096]
[1751462794563,3.602,2446.4,2446.3,0.81736]
[1751462794855,39.923,2446.4,2446.3,0.81736]
[1751462795259,40.74033,2446.4,2446.3,0.81736]
[1751462796859,0.81736,2446.3,2446.2,1.53596]
[1751462797054,0.81746,2446.1,2446.0,0.81746]
[1751462797260,28.98167644,2446.1,2446.0,0.81746]
[1751462798059,0.81751,2446.0,2445.9,0.81747]
[1751462799759,1.53301,2446.0,2445.9,0.81747]
[1751462799959,0.81753,2445.8,2445.7,0.7142]
[1751462800159,0.8176,2445.7,2445.6,0.81756]
[1751462800459,4.18781644,2445.7,2445.6,0.81756]
[1751462801458,0.8176,2445.6,2445.5,0.81761]
[1751462801663,25.6096,2445.6,2445.5,0.81761]
[1751462801963,26.3251,2445.6,2445.5,0.81761]
[1751462802154,26.3251,2445.6,2445.4,0.6736]
[1751462802155,0.81763,2445.5,2445.4,0.81764]
[1751462802960,3.37021644,2445.5,2445.2,5.49453185]
[1751462803164,4.18791644,2445.3,2445.2,0.82384547]
[1751462803457,0.8177,2445.3,2445.2,0.82384547]
[1751462806363,37.13468,2445.4,2445.3,0.8177]
[1751462810470,12.34364,2445.6,2445.5,0.81758]
[1751462810769,37.13664,2445.6,2445.5,0.81758]
[1751462812470,11.526,2445.6,2445.5,0.81758]
[1751462812664,36.32,2445.6,2445.5,0.81758]
[1751462812870,11.527,2445.6,2445.5,4.18784644]
[1751462813073,36.32,2445.6,2445.5,5.62864644]
[1751462813568,11.527,2445.6,2445.5,5.62864644]
[1751462813773,36.32,2445.6,2445.5,5.62864644]
[1751462819787,36.32,2445.6,2445.5,0.81763]
[1751462820181,40.50781644,2445.6,2445.5,0.81763]
[1751462820381,41.23691644,2445.6,2445.5,0.81763]
[1751462821084,41.23693644,2445.6,2445.5,0.81763]
[1751462821281,37.86672,2445.6,2445.5,0.81763]
[1751462824690,41.23693644,2445.6,2445.5,0.81763]
[1751462826786,0.8177,2445.3,2445.2,1.55033547]
[1751462827081,28.97591644,2445.3,2445.2,0.00613547]
[1751462827286,28.97591644,2445.3,2445.2,0.82386547]
[1751462827480,24.788,2445.3,2445.2,0.82386547]
[1751462827885,25.6057,2445.3,2445.2,0.82386547]
[1751462828788,0.8177,2445.3,2445.2,0.82386547]
[1751462829083,37.1257,2445.3,2445.2,0.82386547]
[1751462829388,36.308,2445.3,2445.2,0.82386547]
[1751462829989,37.1257,2445.3,2445.2,0.82386547]
[1751462830790,36.308,2445.3,2445.2,0.82386547]
[1751462830985,0.81765,2445.5,2445.4,0.81763]
[1751462831191,37.12765,2445.5,2445.4,0.81763]
[1751462831489,0.7291,2445.6,2445.5,0.81763]
[1751462831691,36.31,2445.6,2445.5,0.81763]
[1751462832083,37.1276,2445.6,2445.5,0.81763]
[1751462833189,11.522,2445.6,2445.5,0.81763]
[1751462833389,36.31,2445.6,2445.5,0.81763]
[1751462833589,37.1276,2445.6,2445.5,0.81763]
[1751462836594,0.81766,2445.5,2445.4,0.81764]
[1751462836792,1.52586,2445.5,2445.4,0.81764]
[1751462837792,0.81766,2445.4,2445.3,0.81767]
[1751462837997,25.60466,2445.4,2445.3,0.81767]
[1751462838396,24.787,2445.4,2445.3,0.81767]
[1751462839398,25.60466,2445.4,2445.3,0.81767]
[1751462841603,4.18783644,2445.6,2445.5,0.81763]
[1751462841800,37.12562,2445.6,2445.5,0.81763]
[1751462841997,0.81769,2445.4,2445.3,0.81765]
[1751462842304,0.8177,2445.3,2445.2,0.82384547]
[1751462842502,1.4872,2445.3,2445.2,0.82384547]
[1751462844705,36.308,2445.3,2445.2,0.82386547]
[1751462845001,0.81765,2445.5,2445.4,0.81763]
[1751462845303,37.12565,2445.5,2445.4,0.81763]
[1751462845706,0.81766,2445.4,2445.3,1.54787]
[1751462847205,0.81766,2445.4,2445.3,0.7302]
[1751462847400,0.8177,2445.3,2445.2,0.00613547]
[1751462847705,26.3284,2445.3,2445.2,0.00613547]
[1751462847905,26.3284,2445.3,2445.2,0.82386547]
[1751462848105,26.3284,2445.3,2445.2,0.00613547]
[1751462848506,26.3284,2445.3,2445.2,0.82386547]
[1751462849407,25.6027,2445.3,2445.2,0.00613547]
[1751462850308,24.785,2445.3,2445.2,0.82386547]
[1751462850606,24.785,2445.3,2445.2,2.18236547]
[1751462850808,25.6027,2445.3,2445.2,2.18236547]
[1751462851009,0.81768,2445.4,2445.3,0.81764]
[1751462851305,37.12168,2445.4,2445.3,0.81764]
[1751462852612,40.49189644,2445.4,2445.3,0.81764]
[1751462853513,0.8177,2445.3,2445.2,0.82384547]
[1751462854608,0.8177,2445.3,2445.2,0.00613547]
[1751462854808,0.8177,2445.3,2445.2,0.82386547]
[1751462855112,0.8177,2445.3,2445.2,0.00613547]
[1751462855315,0.8177,2445.3,2445.2,0.82386547]
[1751462858012,0.8177,2445.3,2445.2,0.00613547]
[1751462858407,0.8177,2445.3,2445.2,0.82386547]
[1751462859716,12.33668,2445.4,2445.3,0.8177]
[1751462859922,37.12168,2445.4,2445.3,0.8177]
[1751462860216,11.519,2445.4,2445.3,0.8177]
[1751462860418,36.303,2445.4,2445.3,0.8177]
[1751462861618,11.519,2445.4,2445.3,0.8177]
[1751462861818,36.303,2445.4,2445.3,0.8177]
[1751462862319,37.12066,2445.4,2445.3,0.8177]
[1751462862720,36.303,2445.4,2445.3,0.8177]
[1751462863115,37.12066,2445.4,2445.3,2.166]
[1751462863515,36.303,2445.4,2445.3,2.166]
[1751462863718,37.12066,2445.4,2445.3,2.166]
[1751462864819,37.12066,2445.4,2445.3,0.8177]
[1751462870121,0.81766,2445.4,2445.3,0.8177]
[1751462870320,0.8177,2445.3,2445.2,0.82384547]
[1751462872420,37.1167,2445.3,2445.2,0.82384547]
[1751462873821,37.1167,2445.3,2445.2,0.00613547]
[1751462874027,0.81783,2444.9,2444.8,6.51697278]
[1751462874229,28.96804644,2444.9,2444.8,0.81784]
[1751462875128,0.8179,2444.8,2444.7,0.81787]
[1751462875327,12.3369,2444.8,2444.7,0.81787]
[1751462875724,11.519,2444.8,2444.7,0.81787]
[1751462876125,11.519,2444.8,2444.7,2.14257]
[1751462876326,12.33686,2444.8,2444.7,2.14257]
[1751462878628,11.519,2444.8,2444.7,2.14257]
[1751462879022,0.81785,2444.9,2444.7,2.14257]
[1751462879227,11.52,2444.9,2444.8,4.18807644]
[1751462879525,0.8177,2445.4,2445.3,0.8177]
[1751462879835,37.1157,2445.4,2445.3,0.8177]
[1751462880124,12.3347,2445.4,2445.3,0.8177]
[1751462880326,3.602,2445.6,2445.4,0.81766]
[1751462880525,11.517,2446.4,2445.8,2.04381]
[1751462880719,11.517,2446.4,2446.3,4.18757644]
[1751462880920,36.3,2446.4,2446.3,4.18757644]
[1751462881322,11.517,2446.4,2446.3,4.18757644]
[1751462881525,36.3,2446.4,2446.3,4.18757644]
[1751462881835,4.08661644,2447.2,2446.3,4.18757644]
[1751462881836,11.517,2447.2,2446.8,2.04292]
[1751462882134,11.517,2447.2,2447.1,4.18730644]
[1751462882331,11.517,2447.2,2447.1,44.98730644]
[1751462882332,36.319,2447.2,2447.1,44.98730644]
[1751462882524,11.517,2447.2,2447.1,44.98730644]
[1751462882727,36.32,2447.2,2447.1,44.98730644]
[1751462883834,36.32,2447.2,2447.1,41.61709]
[1751462884334,36.32,2447.2,2447.1,43.05339]
[1751462885035,36.31,2447.2,2447.1,43.05339]
[1751462885233,37.12706,2447.2,2447.1,40.8]
[1751462885436,36.31,2447.2,2447.1,41.61709]
[1751462885637,37.12706,2447.2,2447.1,40.8]
[1751462885939,36.31,2447.2,2446.8,0.82331547]
[1751462886233,0.81716,2446.9,2446.8,40.80613547]
[1751462886426,25.61516,2446.9,2446.8,40.80613547]
[1751462886733,24.798,2446.9,2446.8,41.62332547]
[1751462886930,25.61516,2446.9,2446.8,0.82332547]
[1751462887635,24.798,2446.9,2446.8,0.82332547]
[1751462888035,25.61516,2446.9,2446.8,0.82332547]
[1751462888233,25.61516,2446.9,2446.8,0.00613547]
[1751462888433,25.61516,2446.9,2446.8,0.82333547]
[1751462890139,24.798,2446.9,2446.8,0.82333547]
[1751462890737,25.61516,2446.9,2446.8,0.82333547]
[1751462892341,24.798,2446.9,2446.8,0.82333547]
[1751462892640,25.61516,2446.9,2446.8,0.82333547]
[1751462892841,24.798,2446.9,2446.8,0.82333547]
[1751462893239,0.81714,2447.0,2446.9,0.81716]
[1751462893436,37.10214,2447.0,2446.9,0.81716]
[1751462894743,36.285,2447.0,2446.9,0.81716]
[1751462895142,36.285,2447.0,2446.8,0.00613547]
[1751462895342,11.51,2447.0,2446.9,0.81716]
[1751462895539,36.28,2447.0,2446.9,0.81716]
[1751462896546,36.28,2447.0,2446.9,2.15026]
[1751462897545,36.289,2447.0,2446.9,2.15026]
[1751462899140,58.871,2447.6,2447.0,2.04281]
[1751462899346,11.51,2447.2,2447.1,2.15019]
[1751462899645,36.283,2447.2,2447.1,2.15019]
[1751462900235,58.871,2447.6,2447.1,2.15019]
[1751462900236,59.68793,2447.6,2447.5,0.81696]
[1751462900439,95.98193,2447.6,2447.5,0.81696]
[1751462905052,95.165,2447.6,2447.1,1.3331]
[1751462905345,0.817,2447.5,2447.4,0.81696]
[1751462907547,0.81703,2447.4,2447.3,0.817]
[1751462907745,0.81709,2447.2,2447.1,0.81705]
[1751462908048,25.58309,2447.2,2447.1,0.81705]
[1751462909050,24.766,2447.2,2447.1,0.81705]
[1751462910851,0.81698,2447.5,2447.4,0.81699]
[1751462911046,37.08698,2447.5,2447.4,0.81699]
[1751462911252,36.27,2447.5,2447.4,0.81699]
[1751462911456,37.08696,2447.5,2447.4,0.81699]
[1751462912657,38.31142,2447.5,2447.1,3.46811]
[1751462912857,0.81704,2447.4,2447.3,0.817]
[1751462913150,0.81707,2447.3,2447.2,0.81702]
[1751462913347,28.94269293,2447.3,2447.2,0.81702]
[1751462914245,0.8171,2447.2,2447.1,0.81707]
[1751462915851,28.94268293,2447.3,2447.2,0.81706]
[1751462916351,28.12562293,2447.3,2447.0,0.708]
[1751462916553,0.81716,2446.9,2446.8,0.82328547]
[1751462916753,37.08616,2446.9,2446.8,0.82328547]
[1751462916949,36.269,2446.9,2446.8,0.82328547]
[1751462917653,0.81711,2447.2,2447.1,0.81706]
[1751462917850,0.81705,2447.3,2447.2,0.81706]
[1751462918049,37.08605,2447.3,2447.2,0.81706]
[1751462923053,0.81717,2446.9,2446.8,0.00613547]
[1751462923262,28.94379293,2446.9,2446.8,0.00613547]
[1751462923461,28.94379293,2446.9,2446.8,0.82333547]
[1751462925160,28.94379293,2446.9,2446.8,0.00613547]
[1751462925565,28.94379293,2446.9,2446.8,0.82333547]
[1751462926166,28.94379293,2446.9,2446.8,0.00613547]
[1751462926369,28.94379293,2446.9,2446.8,0.82333547]
[1751462926570,28.94379293,2446.9,2446.8,0.00613547]
[1751462927366,29.06639954,2446.9,2446.8,0.00613547]
[1751462929666,29.06639954,2446.9,2446.8,0.82333547]
[1751462929867,37.21277661,2446.9,2446.8,0.82333547]
[1751462931779,40.57739954,2446.9,2446.8,0.00613547]
[1751462931968,40.57739954,2446.9,2446.8,0.82333547]
[1751462932268,40.57739954,2446.9,2446.8,0.00613547]
[1751462934375,40.57939954,2446.9,2446.8,0.00613547]
[1751462934576,40.57939954,2446.9,2446.8,0.82333547]
[1751462935773,40.57939954,2446.9,2446.8,0.00613547]
[1751462936776,40.57939954,2446.9,2446.8,0.82333547]
[1751462936979,40.57939954,2446.9,2446.8,0.00613547]
[1751462937179,40.57939954,2446.9,2446.8,0.82333547]
[1751462937379,40.57939954,2446.9,2446.8,0.00613547]
[1751462939280,37.09317,2446.9,2446.8,0.82333547]
[1751462940279,0.81717,2446.9,2446.8,0.82333547]
[1751462940478,37.09317,2446.9,2446.8,0.82333547]
[1751462940983,0.81717,2446.9,2446.8,0.82333547]
[1751462941183,37.09317,2446.9,2446.8,0.82333547]
[1751462941987,40.45779293,2446.9,2446.8,0.00613547]
[1751462942376,40.45779293,2446.9,2446.8,0.82333547]
[1751462942687,40.45779293,2446.9,2446.8,0.00613547]
[1751462944288,40.45779293,2446.9,2446.8,0.82333547]
[1751462944883,37.09317,2446.9,2446.8,0.82333547]
[1751462946791,40.45779293,2446.9,2446.8,0.00613547]
[1751462946985,40.58039954,2446.9,2446.8,0.00613547]
[1751462950494,40.58039954,2446.9,2446.8,0.82333547]
[1751462950693,40.58039954,2446.9,2446.8,0.00613547]
[1751462955591,12.44977661,2446.9,2446.8,0.00613547]
[1751462955894,37.21577661,2446.9,2446.8,0.00613547]
[1751462956094,37.21577661,2446.9,2446.8,0.73233547]
[1751462956288,37.21577661,2446.9,2446.8,2.26573547]
[1751462956888,37.21577661,2446.9,2446.8,1.44853547]
[1751462957094,40.58039954,2446.9,2446.8,1.44853547]
[1751462957586,40.58039954,2446.9,2446.8,0.72233547]
[1751462958496,40.58039954,2446.9,2446.8,0.00613547]
[1751462962001,42.01429954,2446.9,2446.8,0.00613547]
[1751462963502,40.58039954,2446.9,2446.8,0.00613547]
[1751462964602,15.81439954,2446.9,2446.8,0.00613547]
[1751462964806,37.21577661,2446.9,2446.8,0.00613547]
[1751462965201,12.32717,2446.9,2446.8,0.82333547]
[1751462965402,37.09317,2446.9,2446.8,0.82333547]
[1751462966204,37.09317,2446.9,2446.8,0.00613547]
[1751462967508,37.09317,2446.9,2446.8,0.82333547]
[1751462968506,37.09317,2446.9,2446.8,0.00613547]
[1751462970506,37.09317,2446.9,2446.8,0.82333547]
[1751462970908,37.09317,2446.9,2446.8,0.00613547]
[1751462974210,37.09317,2446.9,2446.8,0.82333547]
[1751462974409,37.09317,2446.9,2446.8,1.44113547]
[1751462975812,11.51,2446.9,2446.8,2.25833547]
[1751462976016,0.81713,2447.1,2447.0,0.8171]
[1751462976215,37.09213,2447.1,2447.0,0.8171]
[1751462976610,36.275,2447.1,2447.0,3.5605]
[1751462977012,12.3271,2447.1,2447.0,3.5605]
[1751462977210,36.275,2447.1,2447.0,3.5605]
[1751462977917,0.81709,2447.2,2447.1,0.8171]
[1751462978112,37.09209,2447.2,2447.1,2.1576]
[1751462980718,12.32709,2447.2,2447.1,2.1576]
[1751462981016,37.09109,2447.2,2447.1,2.1576]
[1751462984521,0.81709,2447.2,2447.1,2.1576]
[1751462984723,37.08809,2447.2,2447.1,2.1576]
[1751462985220,0.8171,2447.1,2447.0,1.4029]
[1751462985721,0.8171,2447.1,2447.0,2.22004]
[1751462987524,0.8171,2447.1,2447.0,1.4029]
[1751462987726,0.8171,2447.1,2447.0,0.7311]
[1751462990223,0.8171,2447.1,2447.0,1.54824]
[1751462990528,0.81708,2447.2,2447.1,0.8171]
[1751462990824,37.08508,2447.2,2447.1,0.8171]
[1751462991330,0.81708,2447.2,2447.1,0.8171]
[1751462991627,37.08508,2447.2,2447.1,2.1458]
[1751462991822,36.268,2447.2,2447.1,2.1458]
[1751462992128,37.08507,2447.2,2447.1,2.1458]
[1751462997332,37.08507,2447.2,2447.1,0.8171]
[1751462997730,11.508,2447.2,2447.1,0.8171]
[1751462997924,36.267,2447.2,2447.1,4.18172293]
[1751462998122,0.81703,2447.4,2447.3,0.81704]
[1751462998328,36.267,2447.4,2447.3,0.81704]
[1751462999031,37.084,2447.4,2447.3,0.81704]
[1751462999732,37.084,2447.4,2447.2,1.48925]
[1751462999733,0.81704,2447.3,2447.2,1.48925]
[1751463000033,40.44865293,2447.4,2447.3,0.81704]
[1751463000332,11.508,2447.4,2447.3,4.18166293]
[1751463000528,58.871,2447.6,2447.5,0.81697]
[1751463000740,70.379,2447.6,2447.5,4.18159293]
[1751463001027,0.81697,2447.5,2447.4,1.54388]
[1751463001233,0.81704,2447.4,2447.3,0.81701]
[1751463001532,1.50409,2447.5,2447.4,0.817]
[1751463001728,98.50162293,2447.6,2447.2,2.0601]
[1751463001935,0.81707,2447.2,2447.1,1.54397]
[1751463002128,0.81707,2447.2,2447.1,1.544]
[1751463002129,24.771,2447.2,2447.1,1.544]
[1751463002633,25.58807,2447.2,2447.1,1.544]
[1751463002825,25.58807,2447.2,2447.1,0.8171]
[1751463003022,0.8171,2447.1,2447.0,0.7269]
[1751463003230,0.81717,2446.9,2446.8,4.04649156]
[1751463003528,28.96079293,2446.9,2446.8,0.00613547]
[1751463003923,24.779,2446.9,2446.8,0.00613547]
[1751463004126,24.779,2446.9,2446.6,4.76265609]
[1751463004127,0.81724,2446.7,2446.6,4.04035609]
[1751463004327,28.96086293,2446.7,2446.6,4.04035609]